bitfinex-derivatives/quotes_BNBF0:USTF0_20251203
["timestamp","ask_amount","ask_price","bid_price","bid_amount"]
[1764803746193,1.61811517,919.23,918.32,0.953]
[1764803748492,1.61811517,919.38,918.33,0.67173358]
[1764803748695,0.18933984,919.72,918.34,0.67173358]
[1764803748696,1.61811517,919.39,918.34,0.67173358]
[1764803748896,1.61811517,919.46,918.35,0.67173358]
[1764803749094,1.61811517,919.46,918.36,0.67173358]
[1764803749296,1.61811517,919.47,918.37,0.67173358]
[1764803749495,1.61811517,919.47,918.32,0.953]
[1764803749496,1.61811517,919.47,918.38,0.67173358]
[1764803749693,1.61811517,919.47,918.39,0.67173358]
[1764803749891,1.61811517,919.47,918.4,0.67173358]
[1764803750097,1.61811517,919.47,918.41,0.67173358]
[1764803750398,1.61811517,919.6,918.42,0.67173358]
[1764803750693,1.61811517,919.69,918.43,0.67173358]
[1764803750897,1.61811517,919.69,918.44,0.67173358]
[1764803751197,1.61811517,919.7,918.45,0.67173358]
[1764803751493,1.61811517,919.7,918.46,0.67173358]
[1764803751797,1.61811517,919.7,918.4,0.80643942]
[1764803751798,1.61811517,919.7,918.47,0.67173358]
[1764803752097,1.61811517,919.7,918.48,0.67173358]
[1764803752297,1.61811517,919.7,918.49,0.67173358]
[1764803752494,1.61811517,919.7,918.39,0.80643942]
[1764803752495,1.61811517,919.7,918.5,0.67173358]
[1764803752795,0.18933727,919.51,918.51,0.67173358]
[1764803753093,0.18933727,919.51,918.52,0.67173358]
[1764803753293,0.18933727,919.51,918.53,0.67173358]
[1764803753498,0.18933727,919.51,918.54,0.67173358]
[1764803753694,0.18933727,919.51,918.55,0.67173358]
[1764803753895,0.18933727,919.51,918.56,0.67173358]
[1764803754197,0.18933727,919.51,918.57,0.67173358]
[1764803754398,0.18933727,919.51,918.58,0.67173358]
[1764803754599,0.18933727,919.51,918.59,0.67173358]
[1764803754800,0.18933727,919.51,918.6,0.67173358]
[1764803754997,0.18933727,919.51,918.38,0.80643942]
[1764803754998,0.18933727,919.51,918.61,0.67173358]
[1764803755201,0.18933727,919.51,918.62,0.67173358]
[1764803755401,0.18933727,919.51,918.63,0.67173358]
[1764803755598,0.18933727,919.51,918.64,0.67173358]
[1764803755799,0.18933727,919.51,918.65,0.67173358]
[1764803755998,0.18933727,919.51,918.66,0.67173358]
[1764803756298,0.18933727,919.51,918.37,0.80643942]
[1764803756503,0.18933727,919.51,918.38,0.67024423]
[1764803756702,0.18933727,919.51,918.39,0.67024423]
[1764803757003,0.18933727,919.51,918.4,0.67024423]
[1764803757202,0.18933727,919.51,918.41,0.67024423]
[1764803757498,0.18933727,919.51,918.42,0.67024423]
[1764803757719,0.18933727,919.51,918.43,0.67024423]
[1764803757899,0.18933727,919.51,918.44,0.67024423]
[1764803758098,0.18933727,919.51,918.45,0.67024423]
[1764803758302,0.18933727,919.51,918.46,0.67024423]
[1764803758499,0.18933727,919.51,918.47,0.67024423]
[1764803758704,0.18933727,919.51,918.48,0.67024423]
[1764803758905,0.18933727,919.51,918.49,0.67024423]
[1764803759106,0.18933727,919.51,918.5,0.67024423]
[1764803759304,0.18933727,919.51,918.32,0.953]
[1764803759505,0.18933727,919.51,918.33,0.67056901]
[1764803759709,0.18933727,919.51,918.34,0.67056901]
[1764803759909,0.18933727,919.51,918.35,0.67056901]
[1764803760104,0.18933727,919.51,918.36,0.67056901]
[1764803760308,0.18933727,919.51,918.37,0.67056901]
[1764803760505,0.18933727,919.51,918.38,0.67056901]
[1764803760710,0.18933727,919.51,918.39,0.67056901]
[1764803761006,0.18933727,919.51,918.32,0.953]
[1764803761007,0.18933727,919.51,918.4,0.67056901]
[1764803761209,0.18933727,919.51,918.41,0.67056901]
[1764803761410,0.18933727,919.51,918.42,0.67056901]
[1764803761607,0.18933727,919.51,918.43,0.67056901]
[1764803761806,0.18933727,919.51,918.44,0.67056901]
[1764803762009,0.18933727,919.51,918.45,0.67056901]
[1764803762209,0.18933727,919.51,918.46,0.67056901]
[1764803762410,0.18933727,919.51,918.47,0.67056901]
[1764803762610,0.18933727,919.51,918.32,0.953]
[1764803762810,0.18933727,919.51,918.33,0.67099402]
[1764803763011,0.18933727,919.51,918.34,0.67099402]
[1764803763208,0.18933727,919.51,918.32,0.953]
[1764803763209,0.18933727,919.51,918.35,0.67099402]
[1764803763409,0.18933727,919.51,918.36,0.67099402]
[1764803763713,0.18933727,919.51,918.37,0.67099402]
[1764803763912,0.18933727,919.51,918.38,0.67099402]
[1764803764210,0.18933727,919.51,918.39,0.67099402]
[1764803764512,0.18933727,919.51,918.4,0.67099402]
[1764803764819,0.18933727,919.51,918.41,0.67099402]
[1764803765008,0.18933727,919.51,918.42,0.67099402]
[1764803765212,0.18933727,919.51,918.43,0.67099402]
[1764803765412,0.18933727,919.51,918.32,0.953]
[1764803765413,0.18933727,919.51,918.44,0.67099402]
[1764803765712,0.18933727,919.51,918.45,0.67099402]
[1764803765911,0.18933727,919.51,918.46,0.67099402]
[1764803766110,0.18933727,919.51,918.47,0.67099402]
[1764803766310,0.18933727,919.51,918.48,0.67125415]
[1764803766509,0.18933727,919.51,918.18,0.80643942]
[1764803766713,0.18933727,919.51,918.19,0.67125437]
[1764803767010,0.18933727,919.51,918.2,0.67125437]
[1764803767215,0.18933727,919.51,918.21,0.67125437]
[1764803767410,0.18933727,919.51,918.22,0.67125437]
[1764803767614,0.18933727,919.51,918.23,0.67125437]
[1764803767811,0.18933727,919.51,918.24,0.67125437]
[1764803768016,0.18933727,919.51,918.25,0.67125437]
[1764803768212,0.18933727,919.51,918.26,0.67125437]
[1764803768512,1.80745244,919.51,918.27,0.67125437]
[1764803768715,1.80745244,919.51,918.28,0.67125437]
[1764803768917,1.80745244,919.51,918.29,0.67125437]
[1764803769216,1.80745244,919.51,918.3,0.67125437]
[1764803769517,1.61811517,919.5,918.31,0.67125437]
[1764803769816,1.61811517,919.5,918.32,0.67125437]
[1764803770112,1.61811517,919.5,918.33,0.67125437]
[1764803770316,1.61811517,919.5,918.34,0.67125437]
[1764803770516,1.61811517,919.5,918.35,0.67125437]
[1764803770716,1.61811517,919.5,918.36,0.67125437]
[1764803770913,1.61811517,919.5,918.37,0.67125437]
[1764803771117,0.18933727,919.51,918.25,1.119]
[1764803771118,1.61811517,919.49,918.38,0.67125437]
[1764803771316,1.61811517,919.49,918.39,0.67125437]
[1764803771514,1.61811517,919.49,918.4,0.67125437]
[1764803771818,1.61811517,919.49,918.41,0.67125437]
[1764803772112,1.61811517,919.49,918.42,0.67125437]
[1764803772314,1.61811517,919.49,918.43,0.67125437]
[1764803772614,1.61811517,919.49,918.44,0.67125437]
[1764803772813,1.61811517,919.49,918.45,0.67125437]
[1764803773113,1.61811517,919.49,918.46,0.67125437]
[1764803773312,1.61811517,919.49,918.47,0.67125437]
[1764803773517,1.61811517,919.49,918.48,0.67125437]
[1764803773715,1.61811517,919.49,918.49,0.67125437]
[1764803773918,1.61811517,919.49,918.5,0.67125437]
[1764803774118,1.61811517,919.49,918.25,1.119]
[1764803774314,0.18933727,919.51,918.26,0.67136146]
[1764803774315,1.61811517,919.48,918.26,0.67136146]
[1764803774515,1.61811517,919.48,918.27,0.67136146]
[1764803774713,1.61811517,919.48,918.28,0.67136146]
[1764803775014,1.61811517,919.48,918.29,0.67136146]
[1764803775218,1.61811517,919.48,918.3,0.67136146]
[1764803775418,1.61811517,919.48,918.31,0.67136146]
[1764803775614,1.61811517,919.48,918.32,0.67136146]
[1764803775817,1.61811517,919.48,918.33,0.67136146]
[1764803776016,1.61811517,919.48,918.34,0.67136146]
[1764803776219,1.61811517,919.48,918.35,0.67136146]
[1764803776420,1.61811517,919.48,918.36,0.67136146]
[1764803776615,1.61811517,919.48,918.37,0.67136146]
[1764803776817,1.61811517,919.48,918.38,0.67136146]
[1764803777016,1.61811517,919.48,918.39,0.67136146]
[1764803777221,1.61811517,919.48,918.4,0.67136146]
[1764803777420,1.61811517,919.48,918.41,0.67136146]
[1764803777621,1.61811517,919.48,918.42,0.67136146]
[1764803777920,1.61811517,919.48,918.43,0.67136146]
[1764803778120,1.61811517,919.48,918.44,0.67136146]
[1764803778421,1.61811517,919.47,918.45,0.67136146]
[1764803778721,1.61811517,919.47,918.46,0.67136146]
[1764803778919,1.61811517,919.47,918.47,0.67136146]
[1764803779220,1.61811517,919.47,918.48,0.67136146]
[1764803779421,1.61811517,919.47,918.49,0.67136146]
[1764803779620,1.61811517,919.47,918.5,0.67136146]
[1764803779817,1.61811517,919.47,918.51,0.67136146]
[1764803780017,1.61811517,919.47,918.52,0.67136146]
[1764803780216,1.61811517,919.47,918.25,1.119]
[1764803780416,1.61811517,919.47,918.26,0.67156951]
[1764803780620,1.61811517,919.48,918.27,0.67156951]
[1764803780818,1.61811517,919.48,918.28,0.67156951]
[1764803781017,1.61811517,919.48,918.29,0.67156951]
[1764803781221,1.61811517,919.48,918.3,0.67156951]
[1764803781419,1.61811517,919.48,918.31,0.67156951]
[1764803781622,1.08396794,919.31,918.25,1.119]
[1764803781923,1.08396794,919.4,918.32,0.80643942]
[1764803783124,1.08396794,919.44,918.37,0.80643942]
[1764803784224,1.08396794,919.43,918.36,0.80643942]
[1764803784621,1.08396794,919.44,918.37,0.80643942]
[1764803784919,1.08396794,919.43,918.36,0.80643942]
[1764803785121,0.18933727,919.51,918.25,1.119]
[1764803785122,1.08396794,919.44,918.37,0.80643942]
[1764803786524,1.08396794,919.47,918.4,0.80643942]
[1764803787226,1.08396794,919.46,918.4,0.80643942]
[1764803787827,1.08396794,919.56,918.49,0.80643942]
[1764803788226,1.08396794,919.55,918.5,0.80643942]
[1764803788424,1.08396794,919.56,918.49,0.80643942]
[1764803789828,1.08396794,919.63,918.55,0.80643942]
[1764803790230,1.08396794,919.65,918.57,0.80643942]
[1764803790530,1.08396794,919.96,918.85,0.80643942]
[1764803790730,1.08396794,919.95,918.85,0.80643942]
[1764803791326,1.08396794,919.95,918.55,0.876]
[1764803791327,1.08396794,920.11,918.93,0.80643942]
[1764803791626,2.71786809,920.93,918.95,0.80643942]
[1764803791627,1.08396794,920.12,918.95,0.80643942]
[1764803792130,1.08396794,920.12,918.94,0.80643942]
[1764803792429,1.08396794,920.16,918.91,0.80643942]
[1764803793028,1.08396794,920.16,918.9,0.80643942]
[1764803793224,1.08396794,920.18,918.86,0.80643942]
[1764803794327,1.08396794,920.22,918.85,0.80643942]
[1764803794529,1.08396794,920.25,918.88,0.80643942]
[1764803794729,0.18921322,920.29,918.93,0.80643942]
[1764803795430,0.18921322,920.29,918.89,0.80643942]
[1764803796528,0.18921322,920.29,918.91,0.80643942]
[1764803797430,0.18921322,920.29,918.89,0.80643942]
[1764803798335,0.18921322,920.29,918.87,0.80643942]
[1764803799434,0.18921322,920.29,918.86,0.80643942]
[1764803799634,0.18921322,920.29,918.85,0.80643942]
[1764803800531,0.18921322,920.29,918.55,0.876]
[1764803800532,0.18921322,920.29,918.84,0.80643942]
[1764803801132,0.18921322,920.29,918.85,0.80643942]
[1764803801334,0.18921322,920.29,918.84,0.80643942]
[1764803803132,0.18921322,920.29,918.85,0.80643942]
[1764803803332,0.18921322,920.29,918.84,0.80643942]
[1764803805439,0.18921322,920.29,918.83,0.80643942]
[1764803810342,0.18921322,920.29,918.82,0.80643942]
[1764803811641,0.18921322,920.29,918.83,1.47271079]
[1764803811843,0.18921322,920.29,918.84,0.66627137]
[1764803812047,0.18921322,920.29,918.85,0.66627137]
[1764803812247,0.18921322,920.29,918.86,0.66627137]
[1764803812444,0.18921322,920.29,918.87,0.66627137]
[1764803812647,0.18921322,920.29,918.88,0.66627137]
[1764803812948,0.18921322,920.29,918.89,0.66627137]
[1764803813148,0.18921322,920.29,918.9,0.66627137]
[1764803813348,0.18921322,920.29,918.91,0.66627137]
[1764803813547,0.18921322,920.29,918.92,0.66627137]
[1764803813747,0.18921322,920.29,918.93,0.66627137]
[1764803814044,0.18921322,920.29,918.94,0.66627137]
[1764803814346,0.18921322,920.29,918.95,0.66627137]
[1764803814543,0.18921322,920.29,918.96,0.66627137]
[1764803814742,0.18921322,920.29,918.97,0.66627137]
[1764803814941,0.18921322,920.29,918.68,0.80643942]
[1764803815146,0.18921322,920.29,918.69,0.66637014]
[1764803815349,0.18921322,920.29,918.7,0.66637014]
[1764803815554,0.18921322,920.29,918.71,0.66637014]
[1764803815745,0.18921322,920.29,918.72,0.66637014]
[1764803816050,0.18921322,920.29,918.55,0.876]
[1764803816246,0.18921322,920.29,918.56,0.66676513]
[1764803816451,0.18921322,920.29,918.57,0.66676513]
[1764803816651,0.18921322,920.29,918.58,0.66676513]
[1764803816951,0.18921322,920.29,918.59,0.66676513]
[1764803817149,0.18921322,920.29,918.6,0.66676513]
[1764803817352,0.18921322,920.29,918.61,0.66676513]
[1764803817550,0.18921322,920.29,918.55,0.876]
[1764803817551,0.18921322,920.29,918.62,0.66676513]
[1764803817851,0.18921322,920.29,918.63,0.66676513]
[1764803818051,0.18921322,920.29,918.64,0.66676513]
[1764803818253,0.18921322,920.29,918.65,0.66676513]
[1764803818453,0.18921322,920.29,918.66,0.66676513]
[1764803818747,0.18921322,920.29,918.67,0.66676513]
[1764803818949,0.18921322,920.29,918.68,0.66676513]
[1764803819253,0.18921322,920.29,918.69,0.66676513]
[1764803819554,0.18921322,920.29,918.7,0.66676513]
[1764803819754,0.18921322,920.29,918.71,0.66676513]
[1764803820050,0.18921322,920.29,918.66,0.944]
[1764803821053,1.61811517,920.27,918.66,0.944]
[1764803821654,1.61811517,920.26,918.66,0.944]
[1764803822253,1.61811517,920.25,918.66,0.944]
[1764803822651,1.61811517,920.23,918.66,0.944]
[1764803823248,1.61811517,920.22,918.66,0.944]
[1764803823454,1.61811517,920.19,918.66,0.944]
[1764803824352,1.61811517,920.18,918.66,0.944]
[1764803825151,1.61811517,920.17,918.66,0.944]
[1764803826253,1.61811517,920.16,918.66,0.944]
[1764803827252,1.61811517,920.15,918.66,0.944]
[1764803828658,1.61811517,920.13,918.66,0.944]
[1764803829056,1.61811517,920.04,918.66,0.944]
[1764803829257,0.18921322,920.29,918.66,0.944]
[1764803829258,1.61811517,920.03,918.66,0.944]
[1764803829553,1.61811517,920.02,918.66,0.944]
[1764803831261,0.18921322,920.29,918.66,0.944]
[1764803831262,1.61811517,920.01,918.66,0.944]
[1764803832258,1.61811517,920.0,918.66,0.944]
[1764803832463,1.61811517,919.97,918.66,0.944]
[1764803832659,1.61811517,919.96,918.66,0.944]
[1764803833858,1.61811517,920.04,918.66,0.944]
[1764803834459,1.61811517,920.17,918.66,0.944]
[1764803834659,1.61811517,920.25,918.67,0.66804934]
[1764803834862,1.61811517,920.24,918.68,0.66804934]
[1764803835158,1.61811517,920.23,918.66,0.944]
[1764803835363,1.61811517,920.22,918.66,0.944]
[1764803835558,1.61811517,920.21,918.67,0.66822067]
[1764803835759,1.61811517,920.22,918.66,0.944]
[1764803835958,1.61811517,920.23,918.67,0.66820876]
[1764803836159,1.61811517,920.18,918.66,0.944]
[1764803836363,1.61811517,920.14,918.66,0.944]
[1764803837361,1.61811517,920.13,918.66,0.944]
[1764803837961,1.61811517,920.15,918.66,0.944]
[1764803838362,1.61811517,920.13,918.67,1.248]
[1764803838966,1.61811517,920.08,918.67,1.248]
[1764803839367,1.61811517,920.07,918.67,1.248]
[1764803840264,1.61811517,920.06,918.67,1.248]
[1764803841268,1.61811517,920.05,918.67,1.248]
[1764803842564,1.61811517,920.03,918.67,1.248]
[1764803844168,1.61811517,920.02,918.67,1.248]
[1764803845265,1.61811517,920.01,918.67,1.248]
[1764803847371,1.61811517,920.0,918.67,1.248]
[1764803851372,1.61811517,920.01,918.67,1.248]
[1764803851971,1.61811517,920.09,918.68,0.66782413]
[1764803852168,1.61811517,920.21,918.69,0.66782413]
[1764803852368,1.61811517,920.21,918.7,0.66782413]
[1764803852567,1.61811517,920.21,918.71,0.66782413]
[1764803852766,1.61811517,920.2,918.72,0.66782413]
[1764803852968,1.61811517,920.13,918.73,0.66782413]
[1764803853268,1.61811517,920.11,918.67,1.248]
[1764803853471,1.61811517,920.11,918.68,0.66784389]
[1764803853768,1.61811517,920.11,918.69,0.66784389]
[1764803853968,1.61811517,920.11,918.7,0.66784389]
[1764803854172,1.61811517,920.11,918.71,0.66784389]
[1764803854369,1.61811517,920.12,918.72,0.66784389]
[1764803854669,1.61811517,920.17,918.73,0.66784389]
[1764803854874,1.61811517,920.17,918.74,0.66784389]
[1764803855076,1.61811517,920.17,918.75,0.66784389]
[1764803855277,1.61811517,920.16,918.76,0.66784389]
[1764803855475,1.61811517,920.15,918.77,0.66784389]
[1764803855676,1.61811517,920.15,918.78,0.66784389]
[1764803855877,1.61811517,920.15,918.67,1.248]
[1764803856077,1.61811517,920.15,918.68,0.66789626]
[1764803856278,1.61811517,920.14,918.69,0.66789626]
[1764803856478,1.61811517,920.14,918.7,0.66789626]
[1764803856675,1.61811517,920.14,918.71,0.66789626]
[1764803856880,0.18921322,920.29,918.8,0.80205368]
[1764803857080,0.18921322,920.29,918.93,0.80205368]
[1764803857380,0.18921322,920.29,918.94,0.66789626]
[1764803857575,0.18921322,920.29,918.95,0.66789626]
[1764803857776,0.18921322,920.29,918.96,0.66789626]
[1764803857975,0.18921322,920.29,918.97,0.66789626]
[1764803858176,0.18921322,920.29,918.98,0.66789626]
[1764803858378,1.61811517,920.61,918.99,0.66789626]
[1764803858581,0.1891659,920.49,919.05,0.80205368]
[1764803858880,0.1891659,920.49,919.06,0.66789626]
[1764803859081,0.1891659,920.49,919.07,0.66789626]
[1764803859282,0.1891659,920.49,919.08,0.66789626]
[1764803859480,0.1891659,920.49,919.09,0.66789626]
[1764803859781,0.1891659,920.49,919.1,0.66789626]
[1764803860081,0.1891659,920.49,919.11,0.66789626]
[1764803860284,0.1891659,920.49,919.12,0.66789626]
[1764803860579,0.1891659,920.49,919.13,0.66789626]
[1764803860783,0.1891659,920.49,919.14,0.66789626]
[1764803860985,0.1891659,920.49,919.15,0.66789626]
[1764803861284,0.1891659,920.49,919.16,0.66789626]
[1764803861485,0.1891659,920.49,919.17,0.66789626]
[1764803861782,0.1891659,920.49,919.18,0.66789626]
[1764803861983,0.1891659,920.49,919.19,0.66789626]
[1764803862181,0.1891659,920.49,919.2,0.66789626]
[1764803862382,0.1891659,920.49,919.21,0.66789626]
[1764803862582,0.1891659,920.49,918.91,0.80205368]
[1764803862780,0.1891659,920.49,918.92,0.66695761]
[1764803862984,0.1891659,920.49,918.93,0.66695761]
[1764803863182,0.1891659,920.49,918.94,0.66695761]
[1764803863380,0.1891659,920.49,918.95,0.66695761]
[1764803863584,0.1891659,920.49,918.96,0.66695761]
[1764803863784,0.1891659,920.49,918.97,0.66695761]
[1764803863986,0.1891659,920.49,918.98,0.66695761]
[1764803864282,0.1891659,920.49,918.99,0.66695761]
[1764803864481,0.1891659,920.49,919.0,0.66695761]
[1764803864685,0.1891659,920.49,919.01,0.66695761]
[1764803864885,0.1891659,920.49,919.02,0.66695761]
[1764803865082,0.1891659,920.49,919.03,0.66695761]
[1764803865382,0.1891659,920.49,919.04,0.66695761]
[1764803865585,0.1891659,920.49,919.05,0.66695761]
[1764803865786,0.1891659,920.49,919.06,0.66695761]
[1764803866085,0.1891659,920.49,919.07,0.66695761]
[1764803866283,0.1891659,920.49,918.91,0.80205368]
[1764803866284,0.1891659,920.49,919.08,0.66695761]
[1764803866486,0.1891659,920.49,919.09,0.66695761]
[1764803866687,0.1891659,920.49,919.1,0.66695761]
[1764803866888,0.1891659,920.49,919.11,0.66695761]
[1764803867085,0.1891659,920.49,918.67,1.248]
[1764803867086,0.1891659,920.49,919.12,0.66695761]
[1764803867289,0.1891659,920.49,919.13,0.66695761]
[1764803867486,0.1891659,920.49,919.14,0.66695761]
[1764803867691,0.1891659,920.49,919.15,0.66695761]
[1764803867890,0.1891659,920.49,919.16,0.66695761]
[1764803868189,0.1891659,920.49,919.17,0.66695761]
[1764803868387,0.1891659,920.49,919.18,0.66695761]
[1764803868586,0.1891659,920.49,918.88,0.80205368]
[1764803868791,0.1891659,920.49,918.89,0.66668278]
[1764803869087,0.1891659,920.49,918.9,0.66668278]
[1764803869088,1.80728107,920.49,918.9,0.66668278]
[1764803869290,1.61811517,920.46,918.91,0.66668278]
[1764803869586,1.61811517,920.46,918.92,0.66668278]
[1764803869788,1.61811517,920.46,918.93,0.66668278]
[1764803869991,1.61811517,920.46,918.94,0.66668278]
[1764803870186,1.61811517,920.46,918.95,0.66668278]
[1764803870389,1.61811517,920.46,918.96,0.66668278]
[1764803870588,1.61811517,920.46,918.97,0.66668278]
[1764803870789,1.61811517,920.46,918.98,0.66668278]
[1764803870988,1.61811517,920.46,918.99,0.66668278]
[1764803871290,1.61811517,920.45,919.0,0.66668278]
[1764803871487,1.61811517,920.45,919.01,0.66668278]
[1764803871687,1.61811517,920.45,919.02,0.66668278]
[1764803871891,1.61811517,920.45,919.03,0.66668278]
[1764803872187,1.61811517,920.45,919.04,0.66668278]
[1764803872386,1.61811517,920.45,919.05,0.66668278]
[1764803872591,1.61811517,920.45,919.06,0.66668278]
[1764803872891,1.61811517,920.45,919.07,0.66668278]
[1764803873190,1.61811517,920.45,919.08,0.66668278]
[1764803873390,1.61811517,920.44,919.08,0.836]
[1764803876299,1.61811517,920.45,919.08,0.836]
[1764803877195,1.61811517,920.44,919.08,0.836]
[1764803877399,1.61811517,920.45,919.08,0.836]
[1764803879096,1.61811517,920.43,919.08,0.836]
[1764803879400,1.61811517,920.42,919.08,0.836]
[1764803879601,1.61811517,920.37,919.08,0.836]
[1764803880598,1.61811517,920.36,919.08,0.836]
[1764803880802,1.61811517,920.3,919.08,0.836]
[1764803882102,1.61811517,920.27,919.08,0.836]
[1764803882304,1.61811517,920.26,919.08,0.836]
[1764803882505,1.61811517,920.2,919.08,0.836]
[1764803883306,1.61811517,920.19,919.08,0.836]
[1764803885306,1.61811517,920.18,919.08,0.836]
[1764803887012,1.61811517,920.2,919.08,0.836]
[1764803887410,1.61811517,920.19,919.08,0.836]
[1764803887607,1.61811517,920.41,919.08,0.836]
[1764803889209,0.1891659,920.49,919.08,0.836]
[1764803889210,1.61811517,920.4,919.08,0.836]
[1764803890413,1.61811517,920.39,919.08,0.836]
[1764803890914,1.61811517,920.46,919.09,0.66575902]
[1764803891117,1.61811517,920.45,919.1,0.66575902]
[1764803891317,1.61811517,920.45,919.11,0.66575902]
[1764803891518,0.1891659,920.49,919.12,0.66575902]
[1764803891717,0.1891659,920.49,919.13,0.66575902]
[1764803891917,0.1891659,920.49,919.14,0.66575902]
[1764803892117,0.1891659,920.49,919.15,0.66575902]
[1764803892319,0.1891659,920.49,919.16,0.66575902]
[1764803892520,0.1891659,920.49,919.17,0.66575902]
[1764803892720,0.1891659,920.49,919.18,0.66575902]
[1764803893019,0.1891659,920.49,919.19,0.66575902]
[1764803893219,0.1891659,920.49,919.2,0.66575902]
[1764803893421,0.1891659,920.49,919.21,0.66575902]
[1764803893617,0.1891659,920.49,919.22,0.66575902]
[1764803893815,0.1891659,920.49,919.23,0.66575902]
[1764803894116,0.1891659,920.49,919.24,0.66578284]
[1764803894318,0.1891659,920.49,919.1,1.343]
[1764803894515,0.1891659,920.49,919.11,0.66577217]
[1764803894720,0.1891659,920.49,919.12,0.66577217]
[1764803894920,0.1891659,920.49,919.13,0.66577217]
[1764803895120,0.1891659,920.49,919.14,0.66577217]
[1764803895321,0.1891659,920.49,919.15,0.66577217]
[1764803895616,0.1891659,920.49,919.16,0.66577217]
[1764803895821,0.1891659,920.49,919.17,0.66577217]
[1764803896117,0.1891659,920.49,919.18,0.66577217]
[1764803896419,0.1891659,920.49,919.19,0.66577217]
[1764803896721,0.1891659,920.49,919.2,0.66577217]
[1764803896917,0.1891659,920.49,919.21,0.66577217]
[1764803897120,0.1891659,920.49,919.22,0.66577217]
[1764803897317,0.1891659,920.49,919.23,0.66577217]
[1764803897517,0.1891659,920.49,919.24,0.66577217]
[1764803897722,0.1891659,920.49,919.1,1.343]
[1764803897923,0.1891659,920.49,919.11,0.66556681]
[1764803898119,0.1891659,920.49,919.12,0.66556681]
[1764803898421,0.1891659,920.49,919.13,0.66556681]
[1764803898621,0.1891659,920.49,919.1,1.343]
[1764803898622,0.1891659,920.49,919.14,0.66556681]
[1764803898820,0.1891659,920.49,919.15,0.66556681]
[1764803899020,1.80728107,920.49,919.16,0.66556681]
[1764803899225,1.80728107,920.49,919.17,0.66556681]
[1764803899423,1.80728107,920.49,919.18,0.66556681]
[1764803899622,1.80728107,920.49,919.19,0.66556681]
[1764803899821,1.80728107,920.49,919.2,0.66556681]
[1764803900024,1.80728107,920.49,919.21,0.66556681]
[1764803900325,1.61811517,920.48,919.1,1.343]
[1764803900526,1.61811517,920.48,919.11,0.6658237]
[1764803900726,1.61811517,920.48,919.12,0.6658237]
[1764803900922,1.61811517,920.48,919.13,0.6658237]
[1764803901126,1.61811517,920.48,919.14,0.6658237]
[1764803901423,1.61811517,920.48,919.15,0.6658237]
[1764803901622,1.61811517,920.48,919.16,0.6658237]
[1764803901827,1.61811517,920.48,919.17,0.6658237]
[1764803902023,1.61811517,920.48,919.18,0.6658237]
[1764803902227,1.61811517,920.48,919.19,0.6658237]
[1764803902428,1.61811517,920.47,919.2,0.6658237]
[1764803902729,1.61811517,920.47,919.19,0.819]
[1764803902730,1.61811517,920.47,919.21,0.6658237]
[1764803903028,1.61811517,920.47,919.22,0.6658237]
[1764803903224,1.61811517,920.46,919.23,0.66593788]
[1764803903423,1.61811517,920.46,919.19,0.819]
[1764803903723,1.61811517,920.46,919.2,0.66595669]
[1764803903928,1.61811517,920.46,919.21,0.66595669]
[1764803904224,1.61811517,920.46,919.22,0.66595669]
[1764803904423,0.1891659,920.49,919.23,0.66595669]
[1764803904424,1.61811517,920.48,919.23,0.66595669]
[1764803904623,1.61811517,920.48,919.24,0.66595669]
[1764803904828,1.61811517,920.48,919.25,0.66595669]
[1764803905127,1.61811517,920.48,919.26,0.66595669]
[1764803905328,1.61811517,920.48,919.27,0.66595669]
[1764803905528,1.61811517,920.48,919.28,0.66595669]
[1764803905828,1.61811517,920.48,919.19,0.819]
[1764803906028,1.61811517,920.48,919.2,0.66614074]
[1764803906323,1.61811517,920.47,919.21,0.66614074]
[1764803906627,1.61811517,920.47,919.22,0.66614074]
[1764803906827,1.61811517,920.47,919.23,0.66614074]
[1764803907129,1.61811517,920.46,919.24,0.66614074]
[1764803907322,1.61811517,920.46,919.25,0.66614074]
[1764803907526,1.61811517,920.46,919.26,0.66614074]
[1764803907827,1.61811517,920.46,919.27,0.66614074]
[1764803908027,1.61811517,920.46,919.28,0.66614074]
[1764803908324,1.61811517,920.44,919.29,0.66614074]
[1764803908525,1.61811517,920.44,919.3,0.66614074]
[1764803908725,1.61811517,920.44,919.31,0.66614074]
[1764803908925,1.61811517,920.44,919.19,0.819]
[1764803909128,1.61811517,920.44,919.2,0.66686018]
[1764803909330,1.61811517,920.43,919.21,0.66686018]
[1764803909531,1.61811517,920.43,919.22,0.66686018]
[1764803909731,1.61811517,920.43,919.23,0.66686018]
[1764803909930,1.61811517,920.43,919.24,0.66686018]
[1764803910129,1.61811517,920.43,919.25,0.66686018]
[1764803910329,1.61811517,920.43,919.19,0.819]
[1764803910330,1.61811517,920.42,919.26,0.66686018]
[1764803910529,1.61811517,920.42,919.27,0.66686018]
[1764803910729,1.61811517,920.42,919.28,0.66686018]
[1764803911032,1.61811517,920.42,919.29,0.66686018]
[1764803911234,1.61811517,920.4,919.3,0.66686018]